lending/lending_fUSD_20251022
["ID","MTS","AMOUNT","RATE_DAILY","PERIOD"]
[392064395,1761135054743,-500.0,0.00043835,120]
[392064396,1761135054752,-510.3884452,0.00043835,120]
[392064397,1761135054762,-500.0,0.00043835,120]
[392064398,1761135054771,-500.0,0.00043835,120]
[392064399,1761135054780,-500.0,0.00043835,120]
[392064400,1761135054790,-526.97389516,0.00043835,120]
[392064401,1761135054799,-500.0,0.00043835,120]
[392064402,1761135054809,-500.0,0.00043835,120]
[392064403,1761135054818,-500.0,0.00043835,120]
[392064404,1761135054827,-500.0,0.00043835,120]
[392064405,1761135054837,-500.0,0.00043835,120]
[392064406,1761135054847,-500.0,0.00043835,120]
[392064407,1761135054856,-518.137372,0.00043835,120]
[392064408,1761135054866,-500.7342724,0.00043835,120]
[392064409,1761135054875,-500.0,0.00043835,120]
[392064410,1761135054885,-535.72590978,0.00043835,120]
[392064411,1761135054895,-550.47537781,0.00043835,120]
[392064412,1761135054907,-500.0,0.00043835,120]
[392064413,1761135054917,-500.0,0.00043835,60]
[392064414,1761135054927,-500.0,0.00043835,120]
[392064415,1761135054936,-500.0,0.00043835,120]
[392064416,1761135054946,-500.0,0.00043835,120]
[392064417,1761135054956,-808.37,0.00043835,120]
[392064418,1761135054965,-500.0,0.00043835,120]
[392064419,1761135054974,-500.0,0.00043835,120]
[392064420,1761135054986,-540.8132191,0.00043835,120]
[392064421,1761135054995,-501.79697115,0.00043835,120]
[392064422,1761135055005,-504.42977759,0.00043835,120]
[392064423,1761135055014,-590.21,0.00043835,120]
[392064424,1761135055024,-500.0,0.00043835,120]
[392064425,1761135055033,-500.0,0.00043835,120]
[392064426,1761135055044,-500.0,0.00043835,120]
[392064427,1761135055054,-500.0,0.00043835,120]
[392064428,1761135055063,-500.0,0.00043835,120]
[392064429,1761135055073,-500.0,0.00043835,120]
[392064430,1761135055082,-500.0,0.00043835,120]
[392064431,1761135055092,-500.0,0.00043835,120]
[392064432,1761135055101,-500.0,0.00043835,120]
[392064433,1761135055111,-500.0,0.00043835,120]
[392064434,1761135055120,-500.0,0.00043835,120]
[392064435,1761135055130,-500.0,0.00043835,120]
[392064436,1761135055139,-500.0,0.00043835,120]
[392064437,1761135055149,-500.0,0.00043835,120]
[392064438,1761135055158,-500.0,0.00043835,120]
[392064439,1761135055167,-500.0,0.00043835,120]
[392064440,1761135055176,-500.0,0.00043835,120]
[392064441,1761135055185,-500.0,0.00043835,120]
[392064442,1761135055195,-500.0,0.00043835,120]
[392064443,1761135055204,-500.0,0.00043835,120]
[392064444,1761135055214,-500.0,0.00043835,120]
[392064445,1761135055223,-500.0,0.00043835,120]
[392064446,1761135055233,-517.50731272,0.00043835,120]
[392064447,1761135055242,-500.0,0.00043835,120]
[392064448,1761135055251,-500.0,0.00043835,120]
[392064449,1761135055261,-500.0,0.00043835,120]
[392064450,1761135055270,-506.43482344,0.00043835,120]
[392064451,1761135055279,-500.0,0.00043835,120]
[392064452,1761135055290,-525.92764963,0.00043835,120]
[392064453,1761135055299,-1666.96,0.00043835,120]
[392064454,1761135055307,-500.0,0.00043835,120]
[392064455,1761135055317,-500.0,0.00043835,120]
[392064456,1761135055326,-500.0,0.00043835,120]
[392064457,1761135055336,-500.0,0.00043835,120]
[392064458,1761135055346,-500.0,0.00043835,120]
[392064459,1761135055355,-500.0,0.00043835,120]
[392064460,1761135055366,-608.3065795,0.00043835,120]
[392064461,1761135055375,-500.0,0.00043835,120]
[392064462,1761135055385,-500.0,0.00043835,120]
[392064463,1761135055393,-500.0,0.00043835,30]
[392064464,1761135055403,-507.02,0.00043835,120]
[392064465,1761135055412,-500.0,0.00043835,120]
[392064466,1761135055421,-500.0,0.00043835,120]
[392064467,1761135055433,-555.24351461,0.00043835,120]
[392064468,1761135055443,-500.0,0.00043835,120]
[392064469,1761135055453,-500.0,0.00043835,120]
[392064470,1761135055462,-550.13,0.00043835,120]
[392064471,1761135055472,-500.0,0.00043835,120]
[392064472,1761135055482,-500.0,0.00043835,120]
[392064473,1761135055491,-500.0,0.00043835,120]
[392064474,1761135055501,-2064.5,0.00043835,120]
[392064475,1761135055510,-500.0,0.00043835,120]
[392064476,1761135055519,-505.20998074,0.00043835,120]
[392064477,1761135055529,-500.0,0.00043835,120]
[392064478,1761135055539,-913.64,0.00043835,2]
[392064479,1761135055549,-272.95238056,0.00043835,120]
[392064480,1761135055558,-500.0,0.00043835,120]
[392064481,1761135055568,-500.0,0.00043835,120]
[392064482,1761135055578,-500.0,0.00043835,120]
[392064483,1761135055589,-500.0,0.00043835,120]
[392064484,1761135055599,-500.0,0.00043835,120]
[392064485,1761135055609,-500.0,0.00043835,120]
[392064486,1761135055620,-500.0,0.00043835,120]
[392064487,1761135055631,-541.17,0.00043835,120]
[392064488,1761135055640,-500.0,0.00043835,120]
[392064489,1761135055651,-872.78,0.00043835,120]
[392064490,1761135055661,-500.0,0.00043835,120]
[392064491,1761135055672,-500.0,0.00043835,120]
[392064492,1761135055682,-500.0,0.00043835,120]
[392064493,1761135055692,-500.0,0.00043835,120]
[392064494,1761135055702,-500.0,0.00043835,2]
[392064495,1761135055712,-500.0,0.00043835,120]
[392064496,1761135055721,-500.0,0.00043835,120]
[392064497,1761135055731,-500.0,0.00043835,120]
[392064498,1761135055741,-500.0,0.00043835,120]
[392064499,1761135055751,-500.0,0.00043835,120]
[392064500,1761135055761,-500.0,0.00043835,120]
[392064501,1761135055771,-1205.35,0.00043835,120]
[392064502,1761135055780,-500.0,0.00043835,120]
[392064503,1761135055790,-500.0,0.00043835,120]
[392064504,1761135055800,-500.0,0.00043835,120]
[392064505,1761135055810,-500.0,0.00043835,120]
[392064506,1761135055820,-500.0,0.00043835,120]
[392064507,1761135055830,-500.0,0.00043835,120]
[392064508,1761135055839,-500.0,0.00043835,120]
[392064509,1761135055849,-500.0,0.00043835,120]
[392064510,1761135055859,-500.0,0.00043835,120]
[392064511,1761135055868,-308.54597866,0.00043835,120]
[392064512,1761135055879,-517.76140552,0.00043835,120]
[392064513,1761135055987,-500.0,0.00043835,120]
[392064514,1761135056012,-500.0,0.00043835,120]
[392064515,1761135056023,-500.0,0.00043835,120]
[392064516,1761135056032,-509.18994783,0.00043835,120]
[392064517,1761135056042,-500.0,0.00043835,120]
[392064518,1761135056051,-500.0,0.00043835,120]
[392064519,1761135056061,-500.0,0.00043835,120]
[392064520,1761135056071,-500.0,0.00043835,120]
[392064521,1761135056081,-500.0,0.00043835,120]
[392064522,1761135056091,-500.0,0.00043835,120]
[392064523,1761135056100,-542.6,0.00043835,120]
[392064524,1761135056110,-500.0,0.00043835,120]
[392064525,1761135056119,-500.0,0.00043835,120]
[392064526,1761135056129,-500.0,0.00043835,120]
[392064527,1761135056138,-500.0,0.00043835,120]
[392064528,1761135056148,-435.14727503,0.00043835,120]
[392064529,1761135056158,-1203.31,0.00043835,120]
[392064530,1761135056167,-500.0,0.00043835,120]
[392064531,1761135056177,-500.0,0.00043835,120]
[392064532,1761135056187,-500.0,0.00043835,120]
[392064533,1761135056197,-500.0,0.00043835,120]
[392064534,1761135056207,-500.0,0.00043835,120]
[392064535,1761135056216,-500.0,0.00043835,120]
[392064536,1761135056225,-2653.07,0.00043835,120]
[392064537,1761135056235,-500.0,0.00043835,120]
[392064538,1761135056244,-500.0,0.00043835,120]
[392064539,1761135056253,-588.26,0.00043835,120]
[392064540,1761135056264,-500.0,0.00043835,120]
[392064541,1761135056275,-500.0,0.00043835,120]
[392064542,1761135056285,-500.0,0.00043835,120]
[392064543,1761135056295,-775.04,0.00043835,120]
[392064544,1761135056304,-500.0,0.00043835,120]
[392064545,1761135056314,-500.0,0.00043835,120]
[392064546,1761135056323,-500.0,0.00043835,120]
[392064547,1761135056333,-500.0,0.00043835,120]
[392064548,1761135056343,-500.0,0.00043835,120]
[392064549,1761135056352,-500.0,0.00043835,120]
[392064550,1761135056362,-500.0,0.00043835,120]
[392064551,1761135056371,-500.0,0.00043835,120]
[392064552,1761135056380,-500.0,0.00043835,7]
[392064553,1761135056389,-500.0,0.00043835,120]
[392064554,1761135056398,-500.0,0.00043835,120]
[392064555,1761135056408,-500.0,0.00043835,120]
[392064556,1761135056418,-500.0,0.00043835,120]
[392064557,1761135056427,-1014.34,0.00043835,120]
[392064558,1761135056437,-3416.35,0.00043835,120]
[392064559,1761135056449,-2315.89,0.00043835,120]
[392064560,1761135056458,-500.0,0.00043835,120]
[392064561,1761135056470,-1060.51,0.00043835,120]
[392064562,1761135056480,-1034.07,0.00043835,120]
[392064563,1761135056492,-500.0,0.00043835,120]
[392064564,1761135056502,-500.0,0.00043835,120]
[392064565,1761135056511,-500.0,0.00043835,120]
[392064566,1761135056522,-500.0,0.00043835,120]
[392064567,1761135056531,-500.0,0.00043835,120]
[392064568,1761135056541,-1194.3,0.00043835,120]
[392064569,1761135056551,-500.0,0.00043835,120]
[392064570,1761135056561,-1919.39,0.00043835,120]
[392064571,1761135056571,-500.0,0.00043835,120]
[392064572,1761135056581,-500.0,0.00043835,120]
[392064573,1761135056591,-873.11,0.00043835,120]
[392064574,1761135056601,-500.0,0.00043835,120]
[392064575,1761135056610,-500.0,0.00043835,120]
[392064576,1761135056620,-500.0,0.00043835,120]
[392064577,1761135056630,-500.0,0.00043835,120]
[392064578,1761135056641,-304.74917273,0.00043835,2]
[392064579,1761135056651,-500.0,0.00043835,120]
[392064580,1761135056660,-502.36746973,0.00043835,120]
[392064581,1761135056670,-500.0,0.00043835,120]
[392064582,1761135056679,-500.0,0.00043835,120]
[392064583,1761135056689,-500.0,0.00043835,120]
[392064584,1761135056698,-1274.68,0.00043835,120]
[392064585,1761135056707,-1817.54,0.00043835,120]
[392064586,1761135056717,-502.24241737,0.00043835,120]
[392064587,1761135056727,-500.0,0.00043835,120]
[392064588,1761135056737,-1257.59,0.00043835,120]
[392064589,1761135056747,-587.22,0.00043835,120]
[392064590,1761135056757,-500.0,0.00043835,120]
[392064591,1761135056766,-500.0,0.00043835,120]
[392064592,1761135056776,-500.0,0.00043835,120]
[392064593,1761135056786,-500.0,0.00043835,120]
[392064594,1761135056796,-500.0,0.00043835,120]
[392064595,1761135056806,-500.0,0.00043835,120]
[392064596,1761135056816,-500.0,0.00043835,120]
[392064597,1761135056826,-500.0,0.00043835,120]
[392064598,1761135056835,-2295.09,0.00043835,120]
[392064599,1761135056846,-500.0,0.00043835,120]
[392064600,1761135056856,-500.0,0.00043835,120]
[392064601,1761135056866,-500.0,0.00043835,120]
[392064602,1761135056876,-507.18969636,0.00043835,120]
[392064603,1761135056886,-500.0,0.00043835,120]
[392064604,1761135056895,-500.0,0.00043835,120]
[392064605,1761135056908,-500.0,0.00043835,120]
[392064606,1761135056918,-657.01,0.00043835,120]
[392064607,1761135056928,-500.0,0.00043835,120]
[392064608,1761135056937,-500.0,0.00043835,120]
[392064609,1761135056949,-500.0,0.00043835,120]
[392064610,1761135056959,-507.49070334,0.00043835,120]
[392064611,1761135056968,-500.0,0.00043835,120]
[392064612,1761135056978,-1185.63,0.00043835,120]
[392064613,1761135056988,-500.0,0.00043835,120]
[392064614,1761135056998,-697.37,0.00043835,120]
[392064615,1761135057008,-500.0,0.00043835,120]
[392064616,1761135057017,-500.0,0.00043835,120]
[392064617,1761135057026,-868.7,0.00043835,120]
[392064618,1761135057037,-892.35,0.00043835,120]
[392064619,1761135057047,-500.0,0.00043835,120]
[392064620,1761135057056,-510.99442647,0.00043835,120]
[392064621,1761135057065,-514.95676727,0.00043835,120]
[392064622,1761135057075,-500.0,0.00043835,120]
[392064623,1761135057084,-500.0,0.00043835,120]
[392064624,1761135057094,-205.0,0.00043835,120]
[392064625,1761135057104,-508.84426789,0.00043835,120]
[392064626,1761135057114,-500.0,0.00043835,120]
[392064627,1761135057123,-624.33308433,0.00043835,120]
[392064628,1761135057132,-966.14,0.00043835,120]
[392064629,1761135057142,-500.0,0.00043835,120]
[392064630,1761135057151,-1949.32,0.00043835,120]
[392064631,1761135057161,-500.0,0.00043835,120]
[392064632,1761135057171,-500.0,0.00043835,120]
[392064633,1761135057180,-505.74229136,0.00043835,120]
[392064634,1761135057189,-500.0,0.00043835,120]
[392064635,1761135057199,-500.0,0.00043835,120]
[392064636,1761135057208,-500.0,0.00043835,120]
[392064637,1761135057218,-998.9,0.00043835,120]
[392064638,1761135057227,-500.0,0.00043835,120]
[392064639,1761135057237,-503.53827606,0.00043835,120]
[392064640,1761135057247,-500.0,0.00043835,120]
[392064641,1761135057257,-500.0,0.00043835,120]
[392064642,1761135057266,-500.0,0.00043835,120]
[392064643,1761135057276,-500.0,0.00043835,120]
[392064644,1761135057286,-500.0,0.00043835,120]
[392064645,1761135057296,-500.0,0.00043835,120]
[392064646,1761135057305,-500.0,0.00043835,120]
[392064647,1761135057315,-500.0,0.00043835,120]
[392064648,1761135057324,-500.0,0.00043835,120]
[392064649,1761135057334,-321.76290704,0.00043835,120]
[392064650,1761135057344,-500.0,0.00043835,120]
[392064651,1761135057353,-500.0,0.00043835,120]
[392064652,1761135057363,-500.0,0.00043835,120]
[392064653,1761135057373,-641.15,0.00043835,120]
[392064654,1761135057383,-554.16,0.00043835,120]
[392064655,1761135057393,-500.0,0.00043835,2]
[392064656,1761135057403,-500.0,0.00043835,120]
[392064657,1761135057412,-500.0,0.00043835,120]
[392064658,1761135057422,-500.0,0.00043835,120]
[392064659,1761135057432,-500.0,0.00043835,120]
[392064660,1761135057442,-500.0,0.00043835,120]
[392064661,1761135057452,-500.0,0.00043835,120]
[392064662,1761135057462,-615.10864131,0.00043835,120]
[392064663,1761135057472,-500.0,0.00043835,120]
[392064664,1761135057482,-500.0,0.00043835,16]
[392064665,1761135057492,-500.0,0.00043835,120]
[392064666,1761135057502,-500.0,0.00043835,120]
[392064667,1761135057511,-500.0,0.00043835,120]
[392064668,1761135057521,-4249.64,0.00043835,30]
[392064669,1761135057530,-500.0,0.00043835,120]
[392064670,1761135057539,-8039.99,0.00043835,120]
[392064671,1761135057549,-500.0,0.00043835,120]
[392064672,1761135057559,-514.39893656,0.00043835,120]
[392064673,1761135057568,-500.0,0.00043835,120]
[392064674,1761135057578,-500.0,0.00043835,120]
[392064675,1761135057587,-500.0,0.00043835,120]
[392064676,1761135057597,-500.0,0.00043835,120]
[392064677,1761135057607,-504.23344038,0.00043835,120]
[392064678,1761135057616,-500.0,0.00043835,120]
[392064679,1761135057626,-500.0,0.00043835,120]
[392064680,1761135057636,-500.0,0.00043835,120]
[392064681,1761135057646,-1000.0,0.00043835,120]
[392064682,1761135057656,-500.0,0.00043835,120]
[392064683,1761135057666,-500.0,0.00043835,120]
[392064684,1761135057676,-500.0,0.00043835,120]
[392064685,1761135057686,-500.0,0.00043835,120]
[392064686,1761135057696,-500.0,0.00043835,120]
[392064687,1761135057706,-500.0,0.00043835,120]
[392064688,1761135057716,-500.0,0.00043835,120]
[392064689,1761135057726,-181.25306666,0.00043835,120]
[392064690,1761135057736,-556.61,0.00043835,120]
[392064691,1761135057745,-500.0,0.00043835,120]
[392064692,1761135057755,-500.0,0.00043835,2]
[392064693,1761135057765,-500.0,0.00043835,120]
[392064694,1761135057775,-500.0,0.00043835,120]
[392064695,1761135057785,-500.0,0.00043835,120]
[392064696,1761135057795,-1731.38,0.00043835,120]
[392064697,1761135057805,-500.0,0.00043835,120]
[392064698,1761135057814,-500.0,0.00043835,120]
[392064699,1761135057824,-500.0,0.00043835,120]
[392064700,1761135057833,-530.00402881,0.00043835,120]
[392064701,1761135057843,-500.0,0.00043835,120]
[392064702,1761135057853,-500.0,0.00043835,120]
[392064703,1761135057862,-500.0,0.00043835,120]
[392064704,1761135057872,-500.0,0.00043835,120]
[392064705,1761135057881,-964.29,0.00043835,120]
[392064706,1761135057892,-500.0,0.00043835,120]
[392064707,1761135057903,-10625.73,0.00043835,14]
[392064708,1761135057915,-500.0,0.00043835,120]
[392064709,1761135057926,-500.0,0.00043835,120]
[392064710,1761135057935,-500.0,0.00043835,120]
[392064711,1761135057945,-500.0,0.00043835,120]
[392064712,1761135057955,-500.0,0.00043835,120]
[392064713,1761135057964,-500.0,0.00043835,120]
[392064714,1761135057975,-500.0,0.00043835,120]
[392064715,1761135057987,-500.0,0.00043835,120]
[392064716,1761135058104,-500.0,0.00043835,120]
[392064717,1761135058114,-500.0,0.00043835,120]
[392064718,1761135058124,-500.0,0.00043835,120]
[392064719,1761135058133,-500.0,0.00043835,120]
[392064720,1761135058142,-500.0,0.00043835,120]
[392064721,1761135058152,-500.0,0.00043835,120]
[392064722,1761135058162,-289.0868268,0.00043835,120]
[392064723,1761135058171,-327.68014199,0.00043835,120]
[392064724,1761135058181,-500.0,0.00043835,90]
[392064725,1761135058191,-500.0,0.00043835,120]
[392064726,1761135058200,-341.3425247,0.00043835,5]
[392064727,1761135058210,-500.0,0.00043835,120]
[392064728,1761135058220,-2209.9,0.00043835,120]
[392064729,1761135058229,-500.0,0.00043835,120]
[392064730,1761135058239,-500.0,0.00043835,120]
[392064731,1761135058249,-548.81130462,0.00043835,120]
[392064732,1761135058258,-500.0,0.00043835,120]
[392064733,1761135058268,-500.0,0.00043835,120]
[392064734,1761135058277,-1033.69,0.00043835,120]
[392064735,1761135058287,-500.0,0.00043835,120]
[392064736,1761135058297,-502.87220228,0.00043835,120]
[392064737,1761135058307,-500.0,0.00043835,120]
[392064738,1761135058316,-500.0,0.00043835,120]
[392064739,1761135058326,-500.0,0.00043835,120]
[392064740,1761135058335,-504.25054699,0.00043835,120]
[392064741,1761135058345,-500.0,0.00043835,120]
[392064742,1761135058355,-500.0,0.00043835,120]
[392064743,1761135058364,-500.0,0.00043835,120]
[392064744,1761135058374,-1687.59,0.00043835,120]
[392064745,1761135058383,-195.56956933,0.00043835,120]
[392064746,1761135058404,-500.0,0.00043835,120]
[392064747,1761135058414,-500.0,0.00043835,120]
[392064748,1761135058424,-507.7879474,0.00043835,120]
[392064749,1761135058434,-1271.93,0.00043835,120]
[392064750,1761135058444,-500.0,0.00043835,120]
[392064751,1761135058455,-500.0,0.00043835,120]
[392064752,1761135058465,-500.0,0.00043835,120]
[392064753,1761135058475,-500.0,0.00043835,120]
[392064754,1761135058485,-1740.94,0.00043835,120]
[392064755,1761135058495,-523.50251917,0.00043835,120]
[392064756,1761135058505,-509.04911018,0.00043835,120]
[392064757,1761135058515,-500.0,0.00043835,120]
[392064758,1761135058525,-500.0,0.00043835,120]
[392064759,1761135058535,-281.28036116,0.00043835,120]
[392064760,1761135058545,-1064.16,0.00043835,120]
[392064761,1761135058554,-532.1757194,0.00043835,120]
[392064762,1761135058564,-500.0,0.00043835,2]
[392064763,1761135058574,-530.5378423,0.00043835,120]
[392064764,1761135058584,-1934.23,0.00043835,120]
[392064765,1761135058595,-586.46110931,0.00043835,120]
[392064766,1761135058605,-703.4,0.00043835,120]
[392064767,1761135058615,-500.0,0.00043835,120]
[392064768,1761135058625,-500.0,0.00043835,120]
[392064769,1761135058634,-500.0,0.00043835,2]
[392064770,1761135058645,-694.75,0.00043835,120]
[392064771,1761135058655,-500.0,0.00043835,120]
[392064772,1761135058665,-500.0,0.00043835,120]
[392064773,1761135058674,-500.0,0.00043835,120]
[392064774,1761135058683,-500.0,0.00043835,120]
[392064775,1761135058694,-500.0,0.00043835,120]
[392064776,1761135058703,-500.0,0.00043835,3]
[392064777,1761135058712,-500.0,0.00043835,120]
[392064778,1761135058722,-1460.92,0.00043835,120]
[392064779,1761135058732,-500.0,0.00043835,120]
[392064780,1761135058746,-500.0,0.00043835,120]
[392064781,1761135058756,-503.94157166,0.00043835,120]
[392064782,1761135058767,-625.08,0.00043835,120]
[392064783,1761135058777,-500.0,0.00043835,120]
[392064784,1761135058787,-500.0,0.00043835,120]
[392064785,1761135058797,-500.0,0.00043835,120]
[392064786,1761135058807,-500.0,0.00043835,120]
[392064787,1761135058817,-1203.55,0.00043835,120]
[392064788,1761135058827,-500.0,0.00043835,120]
[392064789,1761135058837,-376.76496688,0.00043835,120]
[392064790,1761135058849,-500.0,0.00043835,120]
[392064791,1761135058859,-500.0,0.00043835,120]
[392064792,1761135058869,-500.0,0.00043835,120]
[392064793,1761135058878,-500.0,0.00043835,120]
[392064794,1761135058888,-927.76,0.00043835,120]
[392064795,1761135058898,-471.72500879,0.00043835,120]
[392064796,1761135058912,-500.0,0.00043835,120]
[392064797,1761135058922,-500.0,0.00043835,120]
[392064798,1761135058932,-500.0,0.00043835,120]
[392064799,1761135058946,-1323.49,0.00043835,120]
[392064800,1761135058957,-500.0,0.00043835,120]
[392064801,1761135058967,-500.0,0.00043835,120]
[392064802,1761135058978,-779.68,0.00043835,120]
[392064803,1761135058988,-500.0,0.00043835,120]
[392064804,1761135058998,-1333.63,0.00043835,120]
[392064805,1761135059008,-363.1178569,0.00043835,120]
[392064806,1761135059019,-501.26859739,0.00043835,120]
[392064807,1761135059029,-500.0,0.00043835,120]
[392064808,1761135059039,-3131.71,0.00043835,120]
[392064809,1761135059049,-500.0,0.00043835,120]
[392064810,1761135059059,-500.0,0.00043835,120]
[392064811,1761135059069,-500.0,0.00043835,120]
[392064812,1761135059079,-500.0,0.00043835,120]
[392064813,1761135059089,-649.38,0.00043835,120]
[392064814,1761135059100,-500.0,0.00043835,120]
[392064815,1761135059110,-500.0,0.00043835,120]
[392064816,1761135059120,-1608.24,0.00043835,120]
[392064817,1761135059130,-523.89122321,0.00043835,120]
[392064818,1761135059144,-500.0,0.00043835,120]
[392064819,1761135059158,-540.71,0.00043835,120]
[392064820,1761135059168,-500.0,0.00043835,120]
[392064821,1761135059178,-500.0,0.00043835,120]
[392064822,1761135059188,-500.0,0.00043835,120]
[392064823,1761135059198,-565.31,0.00043835,120]
[392064824,1761135059208,-500.0,0.00043835,120]
[392064825,1761135059219,-500.0,0.00043835,120]
[392064826,1761135059229,-342.42546615,0.00043835,2]
[392064827,1761135059240,-500.0,0.00043835,120]
[392064828,1761135059251,-684.58,0.00043835,120]
[392064829,1761135059261,-211.0651486,0.00043835,120]
[392064830,1761135059272,-500.0,0.00043835,120]
[392064831,1761135059282,-500.0,0.00043835,120]
[392064832,1761135059292,-503.97001787,0.00043835,120]
[392064833,1761135059302,-1472.23,0.00043835,120]
[392064834,1761135059313,-508.04903498,0.00043835,120]
[392064835,1761135059323,-500.0,0.00043835,120]
[392064836,1761135059333,-500.0,0.00043835,120]
[392064837,1761135059350,-506.14739424,0.00043835,120]
[392064838,1761135059360,-500.0,0.00043835,120]
[392064839,1761135059370,-1337.7,0.00043835,120]
[392064840,1761135059381,-543.78229203,0.00043835,120]
[392064841,1761135059391,-500.0,0.00043835,120]
[392064842,1761135059401,-500.0,0.00043835,120]
[392064843,1761135059410,-500.0,0.00043835,120]
[392064844,1761135059421,-877.86,0.00043835,120]
[392064845,1761135059431,-500.0,0.00043835,120]
[392064846,1761135059440,-500.0,0.00043835,120]
[392064847,1761135059451,-500.0,0.00043835,120]
[392064848,1761135059461,-500.0,0.00043835,120]
[392064849,1761135059471,-500.0,0.00043835,120]
[392064850,1761135059483,-1310.08,0.00043835,120]
[392064851,1761135059495,-500.0,0.00043835,120]
[392064852,1761135059504,-500.0,0.00043835,120]
[392064853,1761135059515,-500.0,0.00043835,120]
[392064854,1761135059525,-500.0,0.00043835,120]
[392064855,1761135059538,-506.66264144,0.00043835,120]
[392064856,1761135059548,-1168.48,0.00043835,120]
[392064857,1761135059558,-526.41912988,0.00043835,120]
[392064858,1761135059569,-500.0,0.00043835,120]
[392064859,1761135059579,-500.0,0.00043835,120]
[392064860,1761135059588,-500.0,0.00043835,120]
[392064861,1761135059598,-500.0,0.00043835,120]
[392064862,1761135059607,-500.0,0.00043835,120]
[392064863,1761135059616,-500.0,0.00043835,120]
[392064864,1761135059626,-500.0,0.00043835,120]
[392064865,1761135059641,-500.0,0.00043835,120]
[392064866,1761135059664,-1609.34,0.00043835,120]
[392064867,1761135059674,-500.0,0.00043835,120]
[392064868,1761135059683,-1017.37,0.00043835,120]
[392064869,1761135059692,-500.0,0.00043835,120]
[392064870,1761135059701,-500.0,0.00043835,120]
[392064871,1761135059711,-2039.83,0.00043835,120]
[392064872,1761135059720,-500.0,0.00043835,120]
[392064873,1761135059730,-500.0,0.00043835,120]
[392064874,1761135059740,-151.58425575,0.00043835,120]
[392064875,1761135059752,-500.0,0.00043835,120]
[392064876,1761135059763,-1575.77,0.00043835,120]
[392064877,1761135059772,-500.0,0.00043835,120]
[392064878,1761135059782,-500.0,0.00043835,120]
[392064879,1761135059792,-500.0,0.00043835,120]
[392064880,1761135059802,-500.0,0.00043835,120]
[392064881,1761135059812,-500.0,0.00043835,120]
[392064882,1761135059823,-300.0,0.00043836,120]
[392064883,1761135059834,-300.0,0.00043836,120]
[392064884,1761135059845,-429.649584,0.00043836,120]
[392064885,1761135059855,-1000.0,0.00043836,29]
[392064886,1761135059865,-150.7936152,0.00043844,120]
[392064887,1761135059875,-3000.0,0.00043892,10]
[392064888,1761135059885,-2548.0,0.00043914,2]
[392064889,1761135059894,-535.149,0.00043914,2]
[392064890,1761135059907,-9854.2682556,0.00043945,5]
[392064891,1761135059916,-611.52,0.00043968,120]
[392064892,1761135059926,-2792.92649315,0.0004399,120]
[392064893,1761135059936,-50000.0,0.00044,44]
[392064894,1761135059946,-814.96957542,0.00044,30]